[Event "Titled Tuesday Blitz January 17 Early 2023"]
[White "Turzo, Attila"]
[Black "Tan, Zhongyi"]
[WhiteFideId "704954"]
[BlackFideId "8603642"]
[WhiteElo "2279"]
[BlackElo "2517"]
[Result "0-1"]
[Round "08"]
[TimeControl "180+2"]
[Date "2023.01.17"]
[WhiteClock "0:00:12"]
[BlackClock "0:00:10"]

1. d4 {[%clk 0:03:00]}  Nf6 {[%clk 0:02:58]} 2. Bf4 {[%clk 0:03:00]}  d5 {[%clk 0:02:58]} 3. e3 {[%clk 0:03:01]}  Bg4 {[%clk 0:02:57]} 4. Nf3 {[%clk 0:02:52]}  e6 {[%clk 0:02:56]} 5. h3 {[%clk 0:02:52]}  Bxf3 {[%clk 0:02:55]} 6. Qxf3 {[%clk 0:02:52]}  Bd6 {[%clk 0:02:55]} 7. Bd3 {[%clk 0:02:50]}  O-O {[%clk 0:02:53]} 8. O-O {[%clk 0:02:50]}  c5 {[%clk 0:02:53]} 9. Nd2 {[%clk 0:02:37]}  Bxf4 {[%clk 0:02:52]} 10. Qxf4 {[%clk 0:02:37]}  c4 {[%clk 0:02:47]} 11. Be2 {[%clk 0:02:36]}  Nc6 {[%clk 0:02:47]} 12. c3 {[%clk 0:02:33]}  b5 {[%clk 0:02:46]} 13. e4 {[%clk 0:02:31]}  dxe4 {[%clk 0:02:46]} 14. Nxe4 {[%clk 0:02:31]}  Nxe4 {[%clk 0:02:45]} 15. Qxe4 {[%clk 0:02:31]}  Ne7 {[%clk 0:02:45]} 16. Bf3 {[%clk 0:02:18]}  Nd5 {[%clk 0:02:45]} 17. a4 {[%clk 0:02:12]}  a6 {[%clk 0:02:38]} 18. Qe5 {[%clk 0:02:05]}  Qd7 {[%clk 0:02:36]} 19. Rfe1 {[%clk 0:02:03]}  bxa4 {[%clk 0:02:08]} 20. Ra2 {[%clk 0:01:55]}  Rab8 {[%clk 0:02:04]} 21. Bd1 {[%clk 0:01:47]}  a3 {[%clk 0:02:00]} 22. Rxa3 {[%clk 0:01:42]}  Rxb2 {[%clk 0:01:59]} 23. Bf3 {[%clk 0:01:41]}  Rb3 {[%clk 0:01:53]} 24. Rxa6 {[%clk 0:01:35]}  Nxc3 {[%clk 0:01:43]} 25. Qc5 {[%clk 0:01:31]}  Qb5 {[%clk 0:01:38]} 26. Rc6 {[%clk 0:01:26]}  Qxc5 {[%clk 0:00:44]} 27. Rxc5 {[%clk 0:01:27]}  Nb1 {[%clk 0:00:34]} 28. Rxc4 {[%clk 0:01:13]}  Nd2 {[%clk 0:00:33]} 29. Bd1 {[%clk 0:01:10]}  Rxh3 {[%clk 0:00:16]} 30. gxh3 {[%clk 0:00:59]}  Nxc4 {[%clk 0:00:16]} 31. Bb3 {[%clk 0:00:59]}  Nb6 {[%clk 0:00:15]} 32. Kg2 {[%clk 0:00:47]}  Rd8 {[%clk 0:00:14]} 33. Re4 {[%clk 0:00:44]}  g6 {[%clk 0:00:14]} 34. h4 {[%clk 0:00:41]}  Kg7 {[%clk 0:00:14]} 35. Kf3 {[%clk 0:00:41]}  h5 {[%clk 0:00:14]} 36. Ke3 {[%clk 0:00:41]}  Rc8 {[%clk 0:00:13]} 37. Kd3 {[%clk 0:00:40]}  Kf6 {[%clk 0:00:13]} 38. Rf4+ {[%clk 0:00:40]}  Ke7 {[%clk 0:00:13]} 39. Re4 {[%clk 0:00:40]}  Rd8 {[%clk 0:00:13]} 40. Re5 {[%clk 0:00:39]}  Nd5 {[%clk 0:00:12]} 41. Bxd5 {[%clk 0:00:35]}  Rxd5 {[%clk 0:00:13]} 42. Re1 {[%clk 0:00:31]}  Ra5 {[%clk 0:00:13]} 43. Re4 {[%clk 0:00:26]}  Ra3+ {[%clk 0:00:13]} 44. Ke2 {[%clk 0:00:25]}  Kd6 {[%clk 0:00:12]} 45. Rf4 {[%clk 0:00:25]}  f5 {[%clk 0:00:12]} 46. Kf1 {[%clk 0:00:20]}  Kd5 {[%clk 0:00:12]} 47. Kg2 {[%clk 0:00:20]}  Rd3 {[%clk 0:00:13]} 48. Kg1 {[%clk 0:00:19]}  Rxd4 {[%clk 0:00:13]} 49. Rf3 {[%clk 0:00:19]}  Rxh4 {[%clk 0:00:13]} 50. Rd3+ {[%clk 0:00:20]}  Rd4 {[%clk 0:00:13]} 51. Re3 {[%clk 0:00:20]}  e5 {[%clk 0:00:13]} 52. Ra3 {[%clk 0:00:19]}  Rg4+ {[%clk 0:00:14]} 53. Kh2 {[%clk 0:00:19]}  Rh4+ {[%clk 0:00:13]} 54. Kg3 {[%clk 0:00:19]}  Rg4+ {[%clk 0:00:14]} 55. Kh3 {[%clk 0:00:19]}  Rc4 {[%clk 0:00:15]} 56. f3 {[%clk 0:00:19]}  Kd4 {[%clk 0:00:14]} 57. Ra6 {[%clk 0:00:19]}  g5 {[%clk 0:00:14]} 58. Rg6 {[%clk 0:00:18]}  g4+ {[%clk 0:00:14]} 59. fxg4 {[%clk 0:00:18]}  hxg4+ {[%clk 0:00:15]} 60. Kg3 {[%clk 0:00:18]}  Ke3 {[%clk 0:00:15]} 61. Re6 {[%clk 0:00:18]}  e4 {[%clk 0:00:14]} 62. Rf6 {[%clk 0:00:16]}  Rc5 {[%clk 0:00:13]} 63. Rf8 {[%clk 0:00:16]}  Rd5 {[%clk 0:00:13]} 64. Rf7 {[%clk 0:00:16]}  Ke2 {[%clk 0:00:12]} 65. Kf4 {[%clk 0:00:15]}  e3 {[%clk 0:00:12]} 66. Re7 {[%clk 0:00:15]}  Kf2 {[%clk 0:00:11]} 67. Re8 {[%clk 0:00:12]}  e2 {[%clk 0:00:10]} 0-1


[Site "https://www.chess.com"]

[Event "Titled Tuesday Blitz January 17 Early 2023"]
[White "Martin Duque, Jesus"]
[Black "Alex_Sahakyan2006"]
[WhiteFideId "2208954"]
[WhiteElo "2386"]
[BlackElo "2675"]
[Result "1-0"]
[Round "08"]
[TimeControl "180+2"]
[Date "2023.01.17"]
[WhiteClock "0:00:06"]
[BlackClock "0:00:06"]

1. Nf3 {[%clk 0:02:58]}  g6 {[%clk 0:02:59]} 2. d4 {[%clk 0:02:54]}  Bg7 {[%clk 0:02:58]} 3. e3 {[%clk 0:02:54]}  c5 {[%clk 0:02:57]} 4. dxc5 {[%clk 0:02:51]}  Qa5+ {[%clk 0:02:54]} 5. Nbd2 {[%clk 0:02:51]}  Qxc5 {[%clk 0:02:53]} 6. a3 {[%clk 0:02:51]}  Qc7 {[%clk 0:02:52]} 7. Be2 {[%clk 0:02:48]}  Nf6 {[%clk 0:02:50]} 8. O-O {[%clk 0:02:39]}  O-O {[%clk 0:02:49]} 9. c4 {[%clk 0:02:39]}  d6 {[%clk 0:02:47]} 10. Nd4 {[%clk 0:02:34]}  Nc6 {[%clk 0:02:46]} 11. b4 {[%clk 0:02:33]}  e5 {[%clk 0:02:29]} 12. Nb5 {[%clk 0:02:31]}  Qe7 {[%clk 0:02:28]} 13. Bb2 {[%clk 0:02:32]}  Be6 {[%clk 0:02:24]} 14. Bf3 {[%clk 0:02:29]}  Rfd8 {[%clk 0:02:20]} 15. Qb3 {[%clk 0:02:20]}  d5 {[%clk 0:02:13]} 16. Rfd1 {[%clk 0:02:16]}  Rd7 {[%clk 0:01:50]} 17. cxd5 {[%clk 0:01:58]}  Nxd5 {[%clk 0:01:51]} 18. Nc4 {[%clk 0:01:56]}  Rad8 {[%clk 0:01:45]} 19. Qc2 {[%clk 0:01:33]}  a6 {[%clk 0:01:29]} 20. Nc3 {[%clk 0:01:32]}  Ndxb4 {[%clk 0:01:30]} 21. axb4 {[%clk 0:01:20]}  Bxc4 {[%clk 0:01:30]} 22. Rxd7 {[%clk 0:01:20]}  Rxd7 {[%clk 0:01:29]} 23. Bxc6 {[%clk 0:01:07]}  bxc6 {[%clk 0:01:27]} 24. Ba3 {[%clk 0:01:01]}  Qd8 {[%clk 0:01:22]} 25. Na4 {[%clk 0:01:00]}  Bd3 {[%clk 0:01:14]} 26. Qc1 {[%clk 0:01:00]}  e4 {[%clk 0:01:09]} 27. Nc5 {[%clk 0:00:57]}  Rd5 {[%clk 0:00:58]} 28. Bb2 {[%clk 0:00:48]}  Bf8 {[%clk 0:00:54]} 29. Bd4 {[%clk 0:00:47]}  Rxd4 {[%clk 0:00:41]} 30. exd4 {[%clk 0:00:45]}  Qxd4 {[%clk 0:00:42]} 31. Nxa6 {[%clk 0:00:39]}  Bh6 {[%clk 0:00:30]} 32. Qd1 {[%clk 0:00:32]}  e3 {[%clk 0:00:20]} 33. fxe3 {[%clk 0:00:26]}  Qxe3+ {[%clk 0:00:19]} 34. Kh1 {[%clk 0:00:26]}  Be4 {[%clk 0:00:14]} 35. Qd8+ {[%clk 0:00:22]}  Kg7 {[%clk 0:00:14]} 36. Nc7 {[%clk 0:00:14]}  Bg5 {[%clk 0:00:11]} 37. Ne8+ {[%clk 0:00:11]}  Kh6 {[%clk 0:00:11]} 38. Qd1 {[%clk 0:00:10]}  Qf2 {[%clk 0:00:10]} 39. Qf1 {[%clk 0:00:08]}  Qd4 {[%clk 0:00:08]} 40. Rd1 {[%clk 0:00:08]}  Qe5 {[%clk 0:00:07]} 41. Nd6 {[%clk 0:00:08]}  Bd5 {[%clk 0:00:06]} 42. Nxf7+ {[%clk 0:00:06]}  Bxf7 {[%clk 0:00:07]} 43. Qxf7 {[%clk 0:00:06]}  Qb2 {[%clk 0:00:06]} 44. Qf8+ {[%clk 0:00:07]}  Kh5 {[%clk 0:00:06]} 45. Qf3+ {[%clk 0:00:07]}  Kh6 {[%clk 0:00:06]} 46. Qf8+ {[%clk 0:00:05]}  Kh5 {[%clk 0:00:06]} 47. Rf1 {[%clk 0:00:06]} 1-0


[Site "https://www.chess.com"]

[Event "Titled Tuesday Blitz January 17 Early 2023"]
[White "Arabidze, Meri"]
[Black "Cappai, Davide"]
[WhiteFideId "13604040"]
[BlackFideId "813338"]
[WhiteElo "2441"]
[BlackElo "2140"]
[Result "1-0"]
[Round "08"]
[TimeControl "180+2"]
[Date "2023.01.17"]
[WhiteClock "0:00:29"]
[BlackClock "0:00:10"]

1. d4 {[%clk 0:02:55]}  c5 {[%clk 0:03:00]} 2. d5 {[%clk 0:02:55]}  e5 {[%clk 0:03:00]} 3. Nc3 {[%clk 0:02:55]}  d6 {[%clk 0:03:01]} 4. e4 {[%clk 0:02:55]}  Be7 {[%clk 0:03:01]} 5. Be2 {[%clk 0:02:54]}  Nd7 {[%clk 0:03:01]} 6. Nf3 {[%clk 0:02:54]}  a6 {[%clk 0:03:01]} 7. a4 {[%clk 0:02:54]}  Ngf6 {[%clk 0:03:00]} 8. O-O {[%clk 0:02:53]}  O-O {[%clk 0:03:00]} 9. Nd2 {[%clk 0:02:54]}  Rb8 {[%clk 0:02:57]} 10. Nc4 {[%clk 0:02:52]}  Qc7 {[%clk 0:02:52]} 11. a5 {[%clk 0:02:51]}  Re8 {[%clk 0:02:52]} 12. f3 {[%clk 0:02:47]}  Nf8 {[%clk 0:02:52]} 13. Nb6 {[%clk 0:02:44]}  Ng6 {[%clk 0:02:49]} 14. Be3 {[%clk 0:02:40]}  h6 {[%clk 0:02:46]} 15. Qd2 {[%clk 0:02:38]}  Kh7 {[%clk 0:02:35]} 16. Rfb1 {[%clk 0:02:37]}  Nh5 {[%clk 0:02:31]} 17. b4 {[%clk 0:02:35]}  cxb4 {[%clk 0:02:16]} 18. Rxb4 {[%clk 0:02:36]}  Ngf4 {[%clk 0:02:06]} 19. Bf1 {[%clk 0:02:36]}  Bg5 {[%clk 0:02:04]} 20. Rc4 {[%clk 0:02:10]}  Qd8 {[%clk 0:02:02]} 21. Nca4 {[%clk 0:01:49]}  Qf6 {[%clk 0:01:50]} 22. Nxc8 {[%clk 0:01:40]}  Rbxc8 {[%clk 0:01:51]} 23. Rxc8 {[%clk 0:01:39]}  Rxc8 {[%clk 0:01:52]} 24. Nb6 {[%clk 0:01:39]}  Rc7 {[%clk 0:01:44]} 25. c4 {[%clk 0:01:37]}  Ng6 {[%clk 0:01:41]} 26. Bxg5 {[%clk 0:01:33]}  hxg5 {[%clk 0:01:42]} 27. Rc1 {[%clk 0:01:27]}  Nh4 {[%clk 0:01:41]} 28. Qf2 {[%clk 0:01:19]}  Kh6 {[%clk 0:01:29]} 29. c5 {[%clk 0:01:02]}  dxc5 {[%clk 0:01:13]} 30. Rxc5 {[%clk 0:01:01]}  Rxc5 {[%clk 0:01:14]} 31. Qxc5 {[%clk 0:01:02]}  Nf4 {[%clk 0:01:14]} 32. d6 {[%clk 0:00:54]}  Nh3+ {[%clk 0:01:09]} 33. gxh3 {[%clk 0:00:50]}  Nxf3+ {[%clk 0:01:09]} 34. Kh1 {[%clk 0:00:50]}  Qf4 {[%clk 0:01:09]} 35. Qf2 {[%clk 0:00:40]}  g4 {[%clk 0:00:41]} 36. hxg4 {[%clk 0:00:31]}  Qxe4 {[%clk 0:00:36]} 37. Qg2 {[%clk 0:00:31]}  Qc6 {[%clk 0:00:26]} 38. d7 {[%clk 0:00:30]}  Qc7 {[%clk 0:00:10]} 39. Qxf3 {[%clk 0:00:29]} 1-0


[Site "https://www.chess.com"]

[Event "Titled Tuesday Blitz January 17 Early 2023"]
[White "Volkov, Maksim"]
[Black "Ibadov, Dashgyn"]
[WhiteFideId "54123070"]
[BlackFideId "24107514"]
[WhiteElo "2258"]
[BlackElo "2391"]
[Result "1-0"]
[Round "08"]
[TimeControl "180+2"]
[Date "2023.01.17"]
[WhiteClock "0:00:06"]
[BlackClock "0:00:01"]

1. d4 {[%clk 0:02:35]}  Nf6 {[%clk 0:02:59]} 2. c4 {[%clk 0:02:35]}  c5 {[%clk 0:02:59]} 3. d5 {[%clk 0:02:35]}  d6 {[%clk 0:03:00]} 4. Nc3 {[%clk 0:02:35]}  g6 {[%clk 0:03:00]} 5. Nf3 {[%clk 0:02:35]}  Bg7 {[%clk 0:03:01]} 6. g3 {[%clk 0:02:36]}  O-O {[%clk 0:03:01]} 7. Bg2 {[%clk 0:02:37]}  e6 {[%clk 0:03:02]} 8. O-O {[%clk 0:02:37]}  exd5 {[%clk 0:03:03]} 9. cxd5 {[%clk 0:02:38]}  Re8 {[%clk 0:03:03]} 10. Bf4 {[%clk 0:02:38]}  Bf5 {[%clk 0:03:02]} 11. Nh4 {[%clk 0:02:38]}  Bg4 {[%clk 0:02:59]} 12. Qd2 {[%clk 0:02:37]}  b5 {[%clk 0:02:37]} 13. h3 {[%clk 0:02:20]}  Bd7 {[%clk 0:02:22]} 14. Bxd6 {[%clk 0:02:10]}  b4 {[%clk 0:02:18]} 15. Nd1 {[%clk 0:02:09]}  Bxh3 {[%clk 0:02:09]} 16. Bxc5 {[%clk 0:01:23]}  Bxg2 {[%clk 0:02:08]} 17. Nxg2 {[%clk 0:01:23]}  Qxd5 {[%clk 0:01:48]} 18. Bxb4 {[%clk 0:01:22]}  Qxd2 {[%clk 0:01:45]} 19. Bxd2 {[%clk 0:01:23]}  Rxe2 {[%clk 0:01:46]} 20. Bc3 {[%clk 0:01:23]}  Nd5 {[%clk 0:01:38]} 21. Bxg7 {[%clk 0:01:08]}  Kxg7 {[%clk 0:01:39]} 22. Rc1 {[%clk 0:01:07]}  Nd7 {[%clk 0:01:35]} 23. Nge3 {[%clk 0:00:48]}  Nxe3 {[%clk 0:01:32]} 24. Nxe3 {[%clk 0:00:49]}  Rxb2 {[%clk 0:01:30]} 25. Rc7 {[%clk 0:00:50]}  Nf6 {[%clk 0:01:20]} 26. a4 {[%clk 0:00:47]}  Ra2 {[%clk 0:01:18]} 27. Rb1 {[%clk 0:00:34]}  Rxa4 {[%clk 0:01:19]} 28. Rbb7 {[%clk 0:00:34]}  Rf8 {[%clk 0:01:18]} 29. Nc4 {[%clk 0:00:26]}  Nd5 {[%clk 0:01:08]} 30. Rc5 {[%clk 0:00:25]}  Nb6 {[%clk 0:00:55]} 31. Nd6 {[%clk 0:00:21]}  Rd4 {[%clk 0:00:54]} 32. Rc6 {[%clk 0:00:19]}  Nd5 {[%clk 0:00:25]} 33. Rxa7 {[%clk 0:00:17]}  Nb4 {[%clk 0:00:22]} 34. Rb6 {[%clk 0:00:17]}  Kg8 {[%clk 0:00:18]} 35. Nb5 {[%clk 0:00:16]}  Rd1+ {[%clk 0:00:16]} 36. Kg2 {[%clk 0:00:16]}  Nd5 {[%clk 0:00:15]} 37. Rd6 {[%clk 0:00:15]}  Ne3+ {[%clk 0:00:15]} 38. fxe3 {[%clk 0:00:15]}  Rxd6 {[%clk 0:00:08]} 39. Nxd6 {[%clk 0:00:15]}  Kg7 {[%clk 0:00:08]} 40. Kf3 {[%clk 0:00:14]}  g5 {[%clk 0:00:08]} 41. Kg4 {[%clk 0:00:13]}  Kg6 {[%clk 0:00:08]} 42. e4 {[%clk 0:00:09]}  h5+ {[%clk 0:00:05]} 43. Kf3 {[%clk 0:00:10]}  Rd8 {[%clk 0:00:05]} 44. Ra6 {[%clk 0:00:10]}  f6 {[%clk 0:00:05]} 45. e5 {[%clk 0:00:06]}  Rf8 {[%clk 0:00:01]} 46. e6 {[%clk 0:00:06]} 1-0


[Site "https://www.chess.com"]

[Event "Titled Tuesday Blitz January 17 Early 2023"]
[White "Pasaribu, Ivan Maxmillian Putra"]
[Black "Piesik, Piotr"]
[WhiteFideId "7104219"]
[BlackFideId "1136194"]
[WhiteElo "2229"]
[BlackElo "2426"]
[Result "0-1"]
[Round "08"]
[TimeControl "180+2"]
[Date "2023.01.17"]
[WhiteClock "0:01:07"]
[BlackClock "0:01:45"]

1. e4 {[%clk 0:03:00]}  g6 {[%clk 0:02:45]} 2. d4 {[%clk 0:03:00]}  Bg7 {[%clk 0:02:45]} 3. Nc3 {[%clk 0:03:01]}  c6 {[%clk 0:02:45]} 4. Nf3 {[%clk 0:02:57]}  d6 {[%clk 0:02:45]} 5. Bc4 {[%clk 0:02:50]}  Nf6 {[%clk 0:02:45]} 6. Bg5 {[%clk 0:02:49]}  b5 {[%clk 0:02:44]} 7. Bd3 {[%clk 0:02:49]}  b4 {[%clk 0:02:43]} 8. Ne2 {[%clk 0:02:49]}  Bg4 {[%clk 0:02:42]} 9. Nd2 {[%clk 0:02:46]}  O-O {[%clk 0:02:38]} 10. h3 {[%clk 0:02:44]}  Bc8 {[%clk 0:02:37]} 11. c3 {[%clk 0:02:44]}  a5 {[%clk 0:02:36]} 12. Nf3 {[%clk 0:02:42]}  Nbd7 {[%clk 0:02:32]} 13. e5 {[%clk 0:02:33]}  dxe5 {[%clk 0:02:27]} 14. dxe5 {[%clk 0:02:34]}  Nd5 {[%clk 0:02:27]} 15. e6 {[%clk 0:02:32]}  fxe6 {[%clk 0:02:26]} 16. Ned4 {[%clk 0:02:26]}  Nc5 {[%clk 0:02:24]} 17. Bc4 {[%clk 0:02:16]}  Qd6 {[%clk 0:02:14]} 18. O-O {[%clk 0:02:07]}  bxc3 {[%clk 0:02:10]} 19. Bxd5 {[%clk 0:01:14]}  exd5 {[%clk 0:02:01]} 20. bxc3 {[%clk 0:01:08]}  e5 {[%clk 0:02:00]} 21. Ne2 {[%clk 0:01:07]}  Bxh3 {[%clk 0:01:47]} 22. Ng3 {[%clk 0:01:07]}  Bg4 {[%clk 0:01:45]} 0-1


[Site "https://www.chess.com"]

[Event "Titled Tuesday Blitz January 17 Early 2023"]
[White "Kuzmin, Roman"]
[Black "Aloma Vidal, Robert"]
[WhiteFideId "44134932"]
[BlackFideId "2260409"]
[WhiteElo "2198"]
[BlackElo "2442"]
[Result "0-1"]
[Round "08"]
[TimeControl "180+2"]
[Date "2023.01.17"]
[WhiteClock "0:00:35"]
[BlackClock "0:00:06"]

1. e4 {[%clk 0:03:00]}  e5 {[%clk 0:02:57]} 2. Nf3 {[%clk 0:03:00]}  Nf6 {[%clk 0:02:57]} 3. Nxe5 {[%clk 0:03:00]}  d6 {[%clk 0:02:57]} 4. Nf3 {[%clk 0:03:00]}  Nxe4 {[%clk 0:02:58]} 5. d4 {[%clk 0:03:01]}  d5 {[%clk 0:02:58]} 6. Bd3 {[%clk 0:03:02]}  Bd6 {[%clk 0:02:58]} 7. O-O {[%clk 0:03:02]}  O-O {[%clk 0:02:58]} 8. c4 {[%clk 0:03:01]}  c6 {[%clk 0:02:59]} 9. Re1 {[%clk 0:03:01]}  Bf5 {[%clk 0:02:54]} 10. Qb3 {[%clk 0:02:54]}  Na6 {[%clk 0:02:45]} 11. Nc3 {[%clk 0:02:39]}  Re8 {[%clk 0:02:28]} 12. cxd5 {[%clk 0:02:31]}  cxd5 {[%clk 0:02:25]} 13. Qxd5 {[%clk 0:02:23]}  Nxc3 {[%clk 0:01:47]} 14. Qxf5 {[%clk 0:01:58]}  Rxe1+ {[%clk 0:01:44]} 15. Nxe1 {[%clk 0:01:59]}  g6 {[%clk 0:01:26]} 16. Qf3 {[%clk 0:01:53]}  Nd5 {[%clk 0:01:04]} 17. Be4 {[%clk 0:01:43]}  Qa5 {[%clk 0:00:52]} 18. Bh6 {[%clk 0:01:37]}  Re8 {[%clk 0:00:45]} 19. Nd3 {[%clk 0:01:32]}  Nac7 {[%clk 0:00:41]} 20. g3 {[%clk 0:01:25]}  f5 {[%clk 0:00:38]} 21. Bxd5+ {[%clk 0:01:24]}  Qxd5 {[%clk 0:00:38]} 22. Qxd5+ {[%clk 0:01:22]}  Nxd5 {[%clk 0:00:38]} 23. Re1 {[%clk 0:01:22]}  Rc8 {[%clk 0:00:31]} 24. Re2 {[%clk 0:01:15]}  Kf7 {[%clk 0:00:19]} 25. Kg2 {[%clk 0:01:09]}  Rc4 {[%clk 0:00:18]} 26. Ne5+ {[%clk 0:01:05]}  Bxe5 {[%clk 0:00:18]} 27. dxe5 {[%clk 0:01:06]}  Ke6 {[%clk 0:00:18]} 28. Bf8 {[%clk 0:01:00]}  f4 {[%clk 0:00:17]} 29. Bd6 {[%clk 0:00:57]}  g5 {[%clk 0:00:17]} 30. Kf3 {[%clk 0:00:51]}  h5 {[%clk 0:00:17]} 31. gxf4 {[%clk 0:00:49]}  Rxf4+ {[%clk 0:00:17]} 32. Kg3 {[%clk 0:00:48]}  Rg4+ {[%clk 0:00:17]} 33. Kf3 {[%clk 0:00:46]}  Rh4 {[%clk 0:00:18]} 34. Rc2 {[%clk 0:00:40]}  Rxh2 {[%clk 0:00:14]} 35. Rc8 {[%clk 0:00:39]}  Nf4 {[%clk 0:00:10]} 36. Rc7 {[%clk 0:00:36]}  Kd5 {[%clk 0:00:08]} 37. Rxb7 {[%clk 0:00:35]}  Rh3# {[%clk 0:00:06]} 0-1


[Site "https://www.chess.com"]

[Event "Titled Tuesday Blitz January 17 Early 2023"]
[White "Leiva, Gianmarco"]
[Black "marik_spb"]
[WhiteFideId "3804399"]
[WhiteElo "2392"]
[BlackElo "2466"]
[Result "1-0"]
[Round "08"]
[TimeControl "180+2"]
[Date "2023.01.17"]
[WhiteClock "0:00:03"]
[BlackClock "0:00:01"]

1. e4 {[%clk 0:02:58]}  c6 {[%clk 0:02:31]} 2. d4 {[%clk 0:02:57]}  d5 {[%clk 0:02:28]} 3. e5 {[%clk 0:02:57]}  Bf5 {[%clk 0:02:27]} 4. Nf3 {[%clk 0:02:54]}  e6 {[%clk 0:02:27]} 5. Be2 {[%clk 0:02:52]}  c5 {[%clk 0:02:27]} 6. Be3 {[%clk 0:02:44]}  Qb6 {[%clk 0:02:24]} 7. Nc3 {[%clk 0:02:27]}  Nc6 {[%clk 0:01:49]} 8. O-O {[%clk 0:02:22]}  Qxb2 {[%clk 0:01:26]} 9. Nb5 {[%clk 0:02:21]}  O-O-O {[%clk 0:01:06]} 10. dxc5 {[%clk 0:01:47]}  Qxc2 {[%clk 0:01:05]} 11. Qe1 {[%clk 0:01:39]}  Bxc5 {[%clk 0:00:44]} 12. Rc1 {[%clk 0:01:37]}  Bb4 {[%clk 0:00:44]} 13. Nxa7+ {[%clk 0:01:29]}  Kd7 {[%clk 0:00:41]} 14. Bd2 {[%clk 0:00:34]}  Bxd2 {[%clk 0:00:39]} 15. Nxd2 {[%clk 0:00:34]}  Qb2 {[%clk 0:00:28]} 16. Bb5 {[%clk 0:00:27]}  Ne7 {[%clk 0:00:25]} 17. Nb3 {[%clk 0:00:24]}  Ra8 {[%clk 0:00:21]} 18. Qb4 {[%clk 0:00:20]}  Rxa7 {[%clk 0:00:11]} 19. Nc5+ {[%clk 0:00:20]}  Kc7 {[%clk 0:00:09]} 20. Qxb2 {[%clk 0:00:21]}  Rha8 {[%clk 0:00:09]} 21. a4 {[%clk 0:00:19]}  Kd8 {[%clk 0:00:07]} 22. Rfe1 {[%clk 0:00:18]}  Ke8 {[%clk 0:00:05]} 23. h3 {[%clk 0:00:18]}  Kf8 {[%clk 0:00:05]} 24. Qd2 {[%clk 0:00:17]}  h6 {[%clk 0:00:04]} 25. Nb3 {[%clk 0:00:18]}  Kg8 {[%clk 0:00:01]} 26. Nd4 {[%clk 0:00:17]}  Nxd4 {[%clk 0:00:01]} 27. Qxd4 {[%clk 0:00:18]}  b6 {[%clk 0:00:01]} 28. Qxb6 {[%clk 0:00:18]}  Ng6 {[%clk 0:00:02]} 29. Rc8+ {[%clk 0:00:16]}  Rxc8 {[%clk 0:00:01]} 30. Qxa7 {[%clk 0:00:16]}  Nf4 {[%clk 0:00:02]} 31. a5 {[%clk 0:00:15]}  Be4 {[%clk 0:00:02]} 32. f3 {[%clk 0:00:13]}  Rc2 {[%clk 0:00:01]} 33. fxe4 {[%clk 0:00:12]}  Rxg2+ {[%clk 0:00:01]} 34. Kh1 {[%clk 0:00:12]}  Rb2 {[%clk 0:00:02]} 35. Bf1 {[%clk 0:00:09]}  Nh5 {[%clk 0:00:01]} 36. a6 {[%clk 0:00:04]}  Ng3+ {[%clk 0:00:01]} 37. Kg1 {[%clk 0:00:05]}  dxe4 {[%clk 0:00:02]} 38. Qe3 {[%clk 0:00:03]}  Nf5 {[%clk 0:00:02]} 39. Qxe4 {[%clk 0:00:03]}  Ra2 {[%clk 0:00:02]} 40. Qd3 {[%clk 0:00:02]}  Nh4 {[%clk 0:00:01]} 41. Qc3 {[%clk 0:00:02]}  g6 {[%clk 0:00:01]} 42. Ra1 {[%clk 0:00:03]} 1-0


[Site "https://www.chess.com"]